[Event "Bangladesh SAIF Powertec-ch 2024"]
[Site "Dhaka"]
[Date "2024.07.05"]
[Round "12.1"]
[White "Islam, Khandaker Aminul"]
[Black "Md Minhaz Uddin"]
[Result "1-0"]
[ECO "D00"]
[WhiteElo "2115"]
[BlackElo "2228"]
[Annotator "TA"]
[PlyCount "55"]
[EventDate "2024.06.23"]
[EventType "tourn"]
[EventCountry "BAN"]
[SourceTitle "playchess.com"]
[Source "ChessBase"]
[SourceQuality "1"]
[TimeControl "40/5400+30:1800+30"]

{[%evp 9,55,-9,-32,-27,0,-12,0,0,22,17,35,36,35,21,30,15,86,83,91,92,89,17,97,76,86,39,67,49,59,53,48,77,91,10,55,22,30,24,11,0,0,0,0,-14,16,22,121,135]} 1. d4 {[%emt 0:00:03]} Nf6 {[%emt 0:00:02]} 2. Nc3 {[%emt 0:00:08]} d5 {[%emt 0:02:31]} 3. Bf4 {[%emt 0:00:12]} a6 {[%emt 0:03:42]} 4. e3 {[%emt 0:00:07]} e6 {[%emt 0:00:06]} 5. a3 {[%emt 0:00:34]} c5 {[%emt 0:00:08]} 6. Nf3 {[%emt 0:01:44]} Qb6 {[%emt 0:04:01]} 7. Rb1 {[%emt 0:02:07]} Nc6 {[%emt 0:02:54]} 8. Bd3 {[%emt 0:01:21] Die Stellung ist ausgeglichen.} Bd7 {[%emt 0:00:18]} 9. dxc5 {[%emt 0:00:11]} Qxc5 {[%emt 0:03:37]} 10. O-O {[%emt 0:01:57]} Nh5 {[%emt 0:07:35]} 11. Bc7 {[%emt 0:16:07]} b5 {[%emt 0:11:44] Verhindert Na4.} 12. Ne5 {[%emt 0:17:25]} Nxe5 {[%emt 0:00:05]} (12... Nf6 $11) 13. Bxe5 $16 {[%emt 0:00:02]} Nf6 {[%emt 0:00:10]} 14. Qf3 {[%emt 0:06:27][%cal Ob2b4]} Be7 {[%emt 0:01:53]} 15. Qh3 {[%emt 0:07:54]} ({Vorzuziehen ist} 15. b4 $16 Qb6 16. e4) 15... Bc6 {[%emt 0:08:35]} (15... h5 $11) 16. Ne2 {[%emt 0:01:04] Weiß steht deutlich aktiver.} h6 {[%emt 0:07:40]} 17. Nf4 {[%emt 0:03:43]} (17. f4 $16) 17... Bd7 {[%emt 0:02:31]} 18. Rfd1 {[%emt 0:03:22]} Bd6 {[%emt 0:03:10]} 19. Bxf6 {[%emt 0:06:52]} gxf6 {[%emt 0:00:08]} 20. Nh5 {[%emt 0:00:21]} Be7 {[%emt 0:01:53]} 21. e4 {[%emt 0:02:05]} (21. Qg4 $16) 21... d4 {[%emt 0:01:04]} 22. f4 {[%emt 0:01:23]} Rg8 {[%emt 0:10:02]} 23. Ng3 {[%emt 0:01:56]} O-O-O {[%emt 0:06:00]} 24. Kh1 {[%emt 0:02:44]} Bc6 {[%emt 0:01:22][%cal Oh6h5]} 25. b4 {[%emt 0:01:00]} Qd6 {[%emt 0:00:37]} 26. Rf1 {[%emt 0:00:02]} Kb8 {[%emt 0:01:59][%cal Oh6h5]} (26... h5 $5) 27. Qh5 {[%emt 0:00:51]} Rg6 {[%emt 0:03:27]} (27... Be8 $11 {hält das Gleichgewicht.}) 28. e5 {[%emt 0:02:16] Gewichteter Fehlerwert: Weiß=0.18 (sehr präzise) /Schwarz=0.26 (präzise) .  Fehler:       	Weiß=3     	Schwarz=3     Ungenau:       	Weiß=1     	Schwarz=4     OK:         	Weiß=8     	Schwarz=5     Bester:       	---       	Schwarz=1} 1-0

[Event "Bangladesh SAIF Powertec-ch 2024"]
[Site "Dhaka"]
[Date "2024.07.05"]
[Round "12.2"]
[White "Anata, Choudhury"]
[Black "Ahmed, Sheikh Nasir"]
[Result "1-0"]
[ECO "B30"]
[WhiteElo "2155"]
[BlackElo "2112"]
[Annotator "RC"]
[PlyCount "46"]
[EventDate "2024.06.23"]
[EventType "tourn"]
[EventCountry "BAN"]
[SourceTitle "playchess.com"]
[Source "ChessBase"]
[SourceQuality "1"]
[TimeControl "40/5400+30:1800+30"]

1. e4 {[%emt 0:18:55]} c5 {[%emt 0:00:15]} 2. Nf3 {[%emt 0:00:11]} e6 {[%emt 0:00:04]} 3. Nc3 {[%emt 0:00:32]} Nc6 {[%emt 0:00:09]} 4. Bb5 {[%emt 0:00:06]} Nge7 {[%emt 0:00:13]} 5. d4 {[%emt 0:00:11]} cxd4 {[%emt 0:00:07]} 6. Nxd4 {[%emt 0:00:06]} a6 {[%emt 0:01:37]} 7. Be2 {[%emt 0:00:10]} Nxd4 {[%emt 0:00:56]} 8. Qxd4 {[%emt 0:00:10]} Nc6 {[%emt 0:00:06]} 9. Qd3 {[%emt 0:00:12]} Be7 {[%emt 0:01:20]} 10. Bf4 {[%emt 0:01:08]} O-O {[%emt 0:00:37]} 11. O-O-O {[%emt 0:02:26]} b5 {[%emt 0:06:30]} 12. h4 {[%emt 0:00:58]} Qa5 {[%emt 0:06:48]} 13. Qg3 {[%emt 0:00:40]} Ra7 {[%emt 0:02:33]} 14. Bh6 {[%emt 0:17:16]} Bf6 {[%emt 0:29:34]} 15. e5 {[%emt 0:04:48]} Bxe5 {[%emt 0:01:56]} 16. f4 {[%emt 0:00:07]} Bxc3 {[%emt 0:00:47]} 17. bxc3 {[%emt 0:00:09]} Qa3+ {[%emt 0:00:56]} 18. Kd2 {[%emt 0:04:07]} g6 {[%emt 0:00:07]} 19. h5 {[%emt 0:01:49]} d5 {[%emt 0:08:34]} 20. Bxf8 {[%emt 0:22:11]} Kxf8 {[%emt 0:00:38]} 21. hxg6 {[%emt 0:01:10]} fxg6 {[%emt 0:00:04]} 22. Rh4 {[%emt 0:10:21]} b4 {[%emt 0:07:19]} 23. Rdh1 {[%emt 0:05:17]} Kg8 {[%emt 0:05:17]} 1-0

[Event "Bangladesh SAIF Powertec-ch 2024"]
[Site "Dhaka"]
[Date "2024.07.09"]
[Round "12.2"]
[White "Anata, Choudhury"]
[Black "Ahmed, Sheikh Nasir"]
[Result "1-0"]
[ECO "B40"]
[WhiteElo "2155"]
[BlackElo "2112"]
[Annotator "RC"]
[PlyCount "83"]
[EventDate "2024.06.23"]
[EventType "tourn"]
[EventCountry "BAN"]
[SourceTitle "playchess.com"]
[Source "ChessBase"]
[SourceQuality "1"]
[TimeControl "40/5400+30:1800+30"]

1. e4 {[%emt 0:00:06]} c5 {[%emt 0:00:24]} 2. Nf3 {[%emt 0:00:18]} e6 {[%emt 0:00:09]} 3. g3 {[%emt 0:01:09]} d5 {[%emt 0:01:53]} 4. exd5 {[%emt 0:02:10]} exd5 {[%emt 0:00:21]} 5. d4 {[%emt 0:00:45]} Nf6 {[%emt 0:01:36]} 6. Bg2 {[%emt 0:00:12]} Be7 {[%emt 0:00:37]} 7. O-O {[%emt 0:00:28]} O-O {[%emt 0:00:05]} 8. dxc5 {[%emt 0:00:52]} Bxc5 {[%emt 0:00:03]} 9. a3 {[%emt 0:00:21]} Nc6 {[%emt 0:03:14]} 10. b4 {[%emt 0:01:48]} Be7 {[%emt 0:01:06]} 11. Nc3 {[%emt 0:02:07]} a6 {[%emt 0:12:37]} 12. Bb2 {[%emt 0:04:27]} h6 {[%emt 0:00:59]} 13. Re1 {[%emt 0:00:58]} Bf5 {[%emt 0:02:40]} 14. Nd4 {[%emt 0:07:06]} Bg6 {[%emt 0:03:52]} 15. Nb3 {[%emt 0:12:39]} Rc8 {[%emt 0:11:45]} 16. Rc1 {[%emt 0:02:52]} a5 {[%emt 0:25:38]} 17. b5 {[%emt 0:15:56]} Na7 {[%emt 0:00:35]} 18. Qd4 {[%emt 0:01:27]} b6 {[%emt 0:03:29]} 19. Nxd5 {[%emt 0:05:58]} Bc5 {[%emt 0:00:01]} 20. Nxc5 {[%emt 0:01:18]} Rxc5 {[%emt 0:00:34]} 21. c4 {[%emt 0:00:53]} Nc8 {[%emt 0:00:29]} 22. Nxf6+ {[%emt 0:00:57]} gxf6 {[%emt 0:00:09]} 23. Qxd8 {[%emt 0:00:34]} Rxd8 {[%emt 0:00:01]} 24. Bxf6 {[%emt 0:00:12]} Rf8 {[%emt 0:00:07]} 25. Bd5 {[%emt 0:00:38]} Kh7 {[%emt 0:00:16]} 26. Be7 {[%emt 0:10:29]} Nxe7 {[%emt 0:00:06]} 27. Rxe7 {[%emt 0:00:06]} Kg7 {[%emt 0:02:59]} 28. Rb7 {[%emt 0:01:13]} Rd8 {[%emt 0:00:09]} 29. Re1 {[%emt 0:00:53]} Rd6 {[%emt 0:02:25]} 30. Ree7 {[%emt 0:00:27]} Rf6 {[%emt 0:00:51]} 31. Rec7 {[%emt 0:00:50]} Rxc7 {[%emt 0:00:59]} 32. Rxc7 {[%emt 0:00:10]} Kf8 {[%emt 0:00:01]} 33. f4 {[%emt 0:03:44]} Ke8 {[%emt 0:00:23]} 34. Kf2 {[%emt 0:00:19]} Kd8 {[%emt 0:00:02]} 35. Ra7 {[%emt 0:00:32]} Rd6 {[%emt 0:00:37]} 36. Ke3 {[%emt 0:00:24]} Rd7 {[%emt 0:00:15]} 37. Ra8+ {[%emt 0:00:51]} Ke7 {[%emt 0:01:20]} 38. Kd4 {[%emt 0:00:27]} Bf5 {[%emt 0:00:02]} 39. Rb8 {[%emt 0:00:48]} Rd6 {[%emt 0:00:14]} 40. Rb7+ {[%emt 0:00:30]} Bd7 {[%emt 0:00:03]} 41. c5 {[%emt 0:30:26]} bxc5+ {[%emt 0:30:07]} 42. Kxc5 {[%emt 0:00:08]} 1-0

[Event "Bangladesh SAIF Powertec-ch 2024"]
[Site "Dhaka"]
[Date "2024.07.09"]
[Round "12.3"]
[White "Mohammad Fahad, Rahman"]
[Black "Nayem, Haque"]
[Result "1/2-1/2"]
[ECO "D38"]
[WhiteElo "2437"]
[BlackElo "2187"]
[Annotator "TA"]
[PlyCount "107"]
[EventDate "2024.06.23"]
[EventType "tourn"]
[EventCountry "BAN"]
[SourceTitle "playchess.com"]
[Source "ChessBase"]
[SourceQuality "1"]
[TimeControl "40/5400+30:1800+30"]

{[%evp 13,107,38,34,29,27,34,49,51,58,52,88,79,88,89,95,20,27,25,21,17,98,80,95,99,104,65,68,62,95,89,163,120,116,50,279,295,256,29,20,18,26,20,35,-41,-34,-35,-19,-30,0,-60,-65,-62,-55,-49,-17,-72,22,21,64,64,64,64,64,64,64,64,64,64,90,90,90,90,90,90,90,90,90,90,90,90,90,30,30,30,30,27,27,26,26,26,27,26,27,0,27,0]} 1. d4 {[%emt 0:00:45]} d5 {[%emt 0:00:02]} 2. c4 {[%emt 0:00:08]} e6 {[%emt 0:00:02]} 3. Nc3 {[%emt 0:00:20]} Nf6 {[%emt 0:00:04]} 4. Nf3 {[%emt 0:01:25]} Bb4 {[%emt 0:02:22]} 5. Qa4+ {[%emt 0:00:28]} Nc6 {[%emt 0:00:03]} 6. e3 {[%emt 0:00:33]} a6 {[%emt 0:00:58]} 7. Bd2 {[%emt 0:01:00]} O-O {[%emt 0:00:48]} 8. a3 {[%emt 0:03:01]} Bd6 {[%emt 0:00:54]} 9. c5 {[%emt 0:02:23]} Be7 {[%emt 0:00:03]} 10. Bd3 {[%emt 0:00:46] White is slightly better.} Bd7 {[%emt 0:00:02][%cal Oe6e5]} 11. Qc2 {[%emt 0:00:28]} h6 {[%emt 0:01:00]} 12. O-O {[%emt 0:00:43]} Be8 {[%emt 0:00:20]} 13. b4 {[%emt 0:00:53]} Nd7 {[%emt 0:01:08]} 14. e4 {[%emt 0:03:24]} ({White should try} 14. h3 $16) 14... dxe4 $11 {[%emt 0:00:04]} 15. Nxe4 {[%emt 0:00:08]} Nf6 {[%emt 0:00:13]} 16. Rad1 {[%emt 0:01:21]} Rb8 {[%emt 0:03:53]} (16... Nxd4 $2 17. Nxd4 a5 (17... Qxd4 $2 18. Bc3 $18) 18. Nxf6+ Bxf6 19. Be3 $18) (16... Nxe4 $11 {remains equal.} 17. Bxe4 f5) 17. Rfe1 $16 {[%emt 0:03:21]} Nxe4 {[%emt 0:06:27]} (17... Nxd4 $2 18. Nxd4 Nd5 19. c6 $18) 18. Bxe4 {[%emt 0:00:33][%cal Od2h6] And now Bxh6! would win.} Bf6 {[%emt 0:01:17]} (18... Nxd4 $2 19. Nxd4 Qc8 20. Bf4 $18) 19. Bc1 {[%emt 0:10:46] aiming for d5.} Ne7 {[%emt 0:01:34]} (19... Nxd4 $2 20. Nxd4 Bxd4 21. Bf4 $18) 20. Ne5 {[%emt 0:03:38]} Nd5 {[%emt 0:00:19]} 21. Rd3 {[%emt 0:01:42]} Bb5 {[%emt 0:03:17]} (21... Bg5 $16) 22. Rg3 {[%emt 0:04:03]} Bh4 {[%emt 0:00:28]} 23. Rg4 {[%emt 0:09:53] White has more active pieces.} (23. Bh7+ $16 Kh8 24. Rh3) 23... f5 $2 {[%emt 0:00:53] [#]} (23... h5 $1 $14 24. Rxh4 (24. Bh7+ Kh8 $11) 24... Qxh4) 24. Bxh6 $1 $18 {[%emt 0:04:54]} Bf6 {[%emt 0:01:58] [#]} (24... fxg4 25. Bh7+ Kh8 26. Ng6+ Kxh7 27. Nxf8+ Kg8 28. Qh7+ (28. Nxe6 Qf6 $19) 28... Kxf8 29. Qxg7+ Ke8 30. Qg8+ Ke7 31. Qxe6#) 25. Bxd5 $2 {[%emt 0:08:55]} (25. Rg3 $1 $18) 25... Qxd5 $11 {[%emt 0:00:37]} 26. Rg3 {[%emt 0:00:22] Black must now prevent Qc1. Some like it hot} Qxd4 {[%emt 0:00:39]} 27. Nf3 {[%emt 0:04:01][%csl LRd4,LRe6]} Qc4 {[%emt 0:01:36]} (27... Qc3 {simplifies} 28. Qxc3 Bxc3 29. Ne5 Bxe5 30. Rxe5 Rf7) 28. Qd2 {[%emt 0:00:26]} (28. Qxc4 $14 Bxc4 29. Bf4) 28... Rbd8 $15 {[%emt 0:02:03]} 29. Qf4 {[%emt 0:03:56]} Rd3 {[%emt 0:22:06] Threatening ...Qc3.} (29... Qxf4 {simplifies} 30. Bxf4 Rd3 31. Bxc7 Rxa3 32. Bd6 Re8) 30. h4 {[%emt 0:04:00]} (30. Qxc7 Qc3 31. Bxg7 (31. Qxb7 $2 Rxf3 $19) 31... Bxg7 32. Qxb7 Bc4 $15) 30... Rf7 {[%emt 0:10:21]} (30... Rxa3 31. Qxc7 Rf7 32. Qb8+ Kh7 33. Be3 $16) (30... Qxf4 {simplifies} 31. Bxf4 Rxa3 32. Bxc7 Rb3) 31. a4 {[%emt 0:03:19]} Qxf4 $1 {[%emt 0:01:29]} 32. Bxf4 {[%emt 0:00:03]} Bxa4 {[%emt 0:00:51]} 33. Rxe6 {[%emt 0:00:13]} Bc6 {[%emt 0:01:59]} 34. Ne5 {[%emt 0:10:31]} (34. Bxc7 $11 {keeps the balance.} Bxf3 35. gxf3) 34... Rxg3 {[%emt 0:01:34]} (34... Rd1+ $17 35. Kh2 Rd4 (35... Bxh4 36. Ra3 $11)) 35. Bxg3 $11 {[%emt 0:00:03]} Bd5 {[%emt 0:09:09] A strong pair of Bishops.} 36. Re8+ {[%emt 0:00:24]} Rf8 {[%emt 0:00:01]} 37. Rxf8+ {[%emt 0:00:16]} Kxf8 $14 {[%emt 0:00:03][%mdl 4096] Endgame. KBB-KBN} 38. Nd7+ {[%emt 0:00:14]} Ke7 {[%emt 0:00:01]} 39. Nxf6 {[%emt 0:00:10]} Kxf6 {[%emt 0:00:02]} 40. Bxc7 {[%emt 0:00:10] KB-KB} g6 {[%emt 0:01:11]} 41. Kh2 {[%emt 0:30:09]} Bc6 {[%emt 0:30:37]} 42. Kg3 {[%emt 0:00:07]} Bd5 {[%emt 0:00:33]} 43. f3 {[%emt 0:00:07]} Bc4 {[%emt 0:00:14]} 44. Kf4 {[%emt 0:00:07]} Bf1 {[%emt 0:00:16]} 45. Bd8+ {[%emt 0:00:20]} Kf7 {[%emt 0:00:03]} 46. g4 {[%emt 0:00:28]} fxg4 {[%emt 0:00:03]} 47. Kxg4 {[%emt 0:00:06]} (47. fxg4 $16 Be2 48. Kg5) 47... Bb5 {[%emt 0:00:18]} 48. Kg5 {[%emt 0:00:11]} Be2 {[%emt 0:02:20]} 49. f4 {[%emt 0:00:06]} Bd3 {[%emt 0:02:05]} 50. Bf6 {[%emt 0:02:55]} Bc2 {[%emt 0:00:09]} 51. Bc3 {[%emt 0:00:07]} Bd3 {[%emt 0:00:17]} 52. Bd4 {[%emt 0:00:18]} Bc2 {[%emt 0:00:06]} 53. Bc3 {[%emt 0:00:03]} Bd3 {[%emt 0:00:05]} 54. Bd4 {[%emt 0:00:05] Weighted Error Value: White=0.21 (precise) /Black=0.19 (very precise) .  Loses game:     	---       	Black=1      Missed win:     	White=1     	---        Mistake:       	White=6     	Black=3      Inaccurate:     	White=2     	Black=6      OK:         	White=20    	Black=10     Best:        	White=1     	Black=6      Strong:       	White=1     	Black=1} 1/2-1/2

[Event "Bangladesh SAIF Powertec-ch 2024"]
[Site "Dhaka"]
[Date "2024.07.05"]
[Round "12.3"]
[White "Mohammad Fahad, Rahman"]
[Black "Nayem, Haque"]
[Result "1-0"]
[ECO "E04"]
[WhiteElo "2437"]
[BlackElo "2187"]
[Annotator "TA"]
[PlyCount "81"]
[EventDate "2024.06.23"]
[EventType "tourn"]
[EventCountry "BAN"]
[SourceTitle "playchess.com"]
[Source "ChessBase"]
[SourceQuality "1"]
[TimeControl "40/5400+30:1800+30"]

{[%evp 21,81,0,0,0,0,0,8,20,20,21,15,16,29,22,27,33,33,33,13,6,35,28,66,0,0,0,19,20,44,45,45,45,41,41,56,40,69,62,67,38,45,17,65,73,84,47,79,79,79,82,90,90,90,90,90,0,90,90,104,105,221,221]} 1. d4 {[%emt 0:00:10]} d5 {[%emt 0:00:04]} 2. c4 {[%emt 0:00:09]} c6 {[%emt 0:00:11]} 3. Nc3 {[%emt 0:00:13]} Nf6 {[%emt 0:00:03]} 4. Nf3 {[%emt 0:00:12]} e6 {[%emt 0:00:04]} 5. g3 {[%emt 0:00:10]} dxc4 {[%emt 0:00:42]} 6. Bg2 {[%emt 0:00:07]} b5 {[%emt 0:00:17]} 7. O-O {[%emt 0:00:10]} Bb7 {[%emt 0:00:39]} 8. Ne5 {[%emt 0:00:10]} Nd5 {[%emt 0:00:40]} 9. a4 {[%emt 0:00:23]} a6 {[%emt 0:00:42]} 10. e4 {[%emt 0:00:45]} Nxc3 {[%emt 0:00:15]} 11. bxc3 {[%emt 0:00:02]} Nd7 {[%emt 0:00:20]} 12. Bf4 {[%emt 0:01:52]} Be7 {[%emt 0:03:42]} 13. Qg4 {[%emt 0:00:26]} Bf6 {[%emt 0:04:10]} 14. Nxd7 {[%emt 0:21:56] The position is equal.} Qxd7 {[%emt 0:00:02]} 15. e5 {[%emt 0:00:07]} h5 {[%emt 0:00:10]} 16. Qf3 {[%emt 0:01:09]} Bd8 {[%emt 0:01:01]} 17. axb5 $1 {[%emt 0:00:35]} axb5 {[%emt 0:00:03]} 18. Rxa8 {[%emt 0:00:09]} Bxa8 {[%emt 0:00:05]} 19. Ra1 {[%emt 0:00:07]} Bb7 {[%emt 0:00:28]} 20. Bc1 {[%emt 0:00:18][%mdl 1024] White has compensation.} Bb6 {[%emt 0:11:18]} 21. Ba3 {[%emt 0:18:20]} Kd8 {[%emt 0:03:23]} 22. Re1 {[%emt 0:00:22]} (22. Qf4 $14) 22... Kc8 $11 {[%emt 0:02:39][%cal Oc6c5] Threatens to win with ...c5!} 23. Qf4 {[%emt 0:01:06]} g6 {[%emt 0:01:00]} 24. h4 {[%emt 0:02:23] Black is weak on the dark squares} Bc7 {[%emt 0:01:11]} 25. Qf6 {[%emt 0:02:04]} Rh7 {[%emt 0:00:17]} 26. Be4 {[%emt 0:50:05]} Bd8 {[%emt 0:01:50]} 27. Qf3 {[%emt 0:00:00]} Rh8 {[%emt 0:01:26]} 28. Bc5 {[%emt 0:00:00]} Rg8 {[%emt 0:03:28]} 29. Kg2 {[%emt 0:00:00][%cal Bg1g2,Bg2f1,Bf1e2][%mdl 32]} Rh8 {[%emt 0:01:59]} 30. Rh1 {[%emt 0:00:00]} Rh7 {[%emt 0:05:51]} 31. Kf1 {[%emt 0:00:00]} Rh8 {[%emt 0:02:25]} (31... Kc7 $11) 32. Ke2 $14 {[%emt 0:00:00]} Kc7 {[%emt 0:03:41]} 33. Rb1 {[%emt 0:00:00] White has more active pieces.} (33. Ra1 {is interesting.} Kb8 34. Qh1 Bc7 35. Ra7) 33... Kc8 {[%emt 0:00:13]} 34. Ra1 {[%emt 0:00:00]} Bc7 {[%emt 0:01:11]} 35. Qh1 {[%emt 0:00:00]} (35. Ra7 {keeps more tension.} Kb8 36. Qh1 Re8 37. Ra3) 35... Bb8 {[%emt 0:09:16]} 36. Ra5 {[%emt 0:00:00]} Rd8 {[%emt 0:04:17][%cal Ob8e5] aiming for ...Bxe5!} 37. Ra2 {[%emt 0:00:00]} Rh8 {[%emt 0:02:00]} 38. Ra5 {[%emt 0:00:00]} (38. Rb2 $16) 38... Rg8 {[%emt 0:05:25]} (38... Rd8 $11 {remains equal.}) 39. Qf3 $16 {[%emt 0:00:00]} Rd8 {[%emt 0:04:57][%cal Ob8e5] Strongly threatening ...Bxe5!} 40. Ra1 {[%emt 0:00:00]} Bc7 {[%emt 0:01:41] [#]} (40... Rg8 $16 41. Ra5 Qc7) 41. Ra6 $3 {[%emt 0:11:07][%mdl 512] Weighted Error Value: White=0.09 (flawless) /Black=0.20 (precise) .  Mistake:       	White=2     	Black=3      Inaccurate:     	White=3     	Black=4      OK:         	White=16    	Black=4      Best:        	---       	Black=1      Strong:       	White=1     	---        Brilliant:      	White=1     	---} 1-0

[Event "Bangladesh SAIF Powertec-ch 2024"]
[Site "Dhaka"]
[Date "2024.07.05"]
[Round "12.4"]
[White "Rahman, Ziaur"]
[Black "Hossain, Enamul"]
[Result "1/2-1/2"]
[ECO "E66"]
[WhiteElo "2423"]
[BlackElo "2365"]
[Annotator "TA"]
[PlyCount "49"]
[EventDate "2024.06.23"]
[EventType "tourn"]
[EventCountry "BAN"]
[SourceTitle "playchess.com"]
[Source "ChessBase"]
[SourceQuality "1"]
[TimeControl "40/5400+30:1800+30"]

{[%evp 18,49,14,10,19,16,28,14,14,17,17,27,14,0,51,65,70,79,100,99,97,111,112,81,111,75,81,55,134,127,133,128,169,121]} 1. c4 {[%emt 0:00:30]} Nf6 {[%emt 0:06:10]} 2. g3 {[%emt 0:00:25]} g6 {[%emt 0:01:05]} 3. Bg2 {[%emt 0:00:53]} Bg7 {[%emt 0:00:08]} 4. Nc3 {[%emt 0:00:20]} d6 {[%emt 0:02:45]} 5. d4 {[%emt 0:00:54][%cal Bd2d4,Bd4d5][%mdl 32]} O-O {[%emt 0:00:22]} 6. Nf3 {[%emt 0:00:13]} c5 {[%emt 0:00:32]} 7. O-O {[%emt 0:00:52]} Nc6 {[%emt 0:00:15]} 8. d5 {[%emt 0:00:43]} Na5 {[%emt 0:00:18]} 9. Nd2 {[%emt 0:00:51]} e6 {[%emt 0:00:25]} 10. Rb1 {[%emt 0:01:57]} Re8 {[%emt 0:06:36]} 11. b4 {[%emt 0:06:51]} cxb4 {[%emt 0:04:21]} 12. Rxb4 {[%emt 0:00:24]} exd5 {[%emt 0:09:34] The position is equal.} 13. cxd5 {[%emt 0:02:09]} Bf5 {[%emt 0:04:29]} 14. Bb2 {[%emt 0:05:27]} Rc8 {[%emt 0:07:31]} 15. Qa1 {[%emt 0:04:26]} Bh6 {[%emt 0:03:03]} (15... Ng4 $11) 16. e3 $14 {[%emt 0:14:07]} Bd3 {[%emt 0:06:33][%cal Bf5d3,Bd3a6,Ba6e2][%mdl 32]} 17. Rd1 {[%emt 0:03:49]} Qd7 {[%emt 0:13:44]} 18. Nb3 {[%emt 0:08:27]} Nxb3 {[%emt 0:03:23]} 19. axb3 {[%emt 0:00:25]} ({And not} 19. Rxb3 Bc2 20. Rf1 Bxb3 21. axb3 Ng4 $17) 19... Ba6 {[%emt 0:02:01]} 20. h3 {[%emt 0:07:56]} Re7 {[%emt 0:03:55]} 21. Ra4 {[%emt 0:06:00]} Ne8 {[%emt 0:03:00]} 22. Na2 {[%emt 0:04:24]} Bg7 {[%emt 0:06:53]} (22... Bb5 $1 $14 23. Ra5 (23. Rxa7 Rxe3 24. Nc3 Re7 $14) 23... a6) 23. Bxg7 $16 {[%emt 0:00:47]} Nxg7 {[%emt 0:00:02]} 24. Nb4 {[%emt 0:00:45]} Be2 {[%emt 0:00:55]} 25. Re1 {[%emt 0:04:28] Weighted Error Value: White=0.10 (very precise) /Black=0.19 (very precise) .  Mistake:       	White=1     	Black=2      Inaccurate:     	White=2     	Black=2      OK:         	White=6     	Black=7} (25. Rd2 $18 Ba6 26. Nxa6) 1/2-1/2

[Event "Bangladesh SAIF Powertec-ch 2024"]
[Site "Dhaka"]
[Date "2024.07.05"]
[Round "12.5"]
[White "Zia, Tahsin Tajwar"]
[Black "Abu Sufian, Shakil"]
[Result "1-0"]
[ECO "D15"]
[WhiteElo "2241"]
[BlackElo "2202"]
[Annotator "TA"]
[PlyCount "71"]
[EventDate "2024.06.23"]
[EventType "tourn"]
[EventCountry "BAN"]
[SourceTitle "playchess.com"]
[Source "ChessBase"]
[SourceQuality "1"]
[TimeControl "40/5400+30:1800+30"]

{[%evp 10,71,-16,-25,-11,-23,-10,-20,0,-7,0,4,0,0,0,0,0,0,9,0,0,0,0,0,0,0,0,0,0,0,0,0,0,0,0,-11,20,35,26,33,46,4,81,79,62,50,258,247,252,241,253,220,210,227,254,260,270,250,252,238,241,219,171,197]} 1. d4 {[%emt 0:00:06]} d5 {[%emt 0:00:02]} 2. c4 {[%emt 0:00:09]} c6 {[%emt 0:00:05]} 3. Nf3 {[%emt 0:00:04]} Nf6 {[%emt 0:00:04]} 4. Nc3 {[%emt 0:00:05]} dxc4 {[%emt 0:00:16]} 5. e4 {[%emt 0:00:31][%cal Be2e4,Be4e5][%mdl 32]} b5 {[%emt 0:00:09]} 6. Qc2 {[%emt 0:01:20]} e6 {[%emt 0:05:51]} 7. Be2 {[%emt 0:00:25]} Bb7 {[%emt 0:00:35]} 8. O-O {[%emt 0:00:12]} Nbd7 {[%emt 0:04:36] The position is equal.} 9. b3 {[%emt 0:01:49]} b4 {[%emt 0:14:58]} 10. e5 $1 {[%emt 0:00:09]} cxb3 {[%emt 0:00:14]} 11. Qxb3 {[%emt 0:12:28]} Nd5 {[%emt 0:00:42]} 12. Nxd5 {[%emt 0:03:44]} cxd5 {[%emt 0:00:17]} 13. Bg5 {[%emt 0:01:02]} Qb6 {[%emt 0:03:04]} 14. Rfc1 {[%emt 0:03:38]} h6 {[%emt 0:00:36]} 15. Bd2 {[%emt 0:04:43]} Ba6 {[%emt 0:16:34]} 16. Bxa6 {[%emt 0:18:23]} Qxa6 {[%emt 0:00:43]} 17. Bxb4 {[%emt 0:05:45]} Bxb4 {[%emt 0:00:33]} 18. Qxb4 {[%emt 0:00:04]} Rb8 {[%emt 0:00:12]} 19. Qd6 {[%emt 0:04:55]} Rb6 {[%emt 0:03:40]} 20. Qc7 {[%emt 0:00:06] Hoping for Qc8+.} Ke7 $1 {[%emt 0:00:23]} 21. a4 {[%emt 0:03:57][%cal Ba2a4,Ba4a5][%mdl 32]} Rhb8 {[%emt 0:06:09]} 22. h4 {[%emt 0:00:19]} (22. h3 {looks sharper.} Rb2 23. a5 Qe2 24. Rf1) 22... Qb7 {[%emt 0:02:53]} (22... Rb2 {is more complex.} 23. a5 Qe2 24. Rf1 Qc4) 23. Qc2 {[%emt 0:00:28]} Nf8 {[%emt 0:02:38] Prevents Qh7.} 24. a5 {[%emt 0:02:36]} Rb2 {[%emt 0:01:48]} 25. Qc7+ {[%emt 0:01:19]} Qxc7 {[%emt 0:00:17]} (25... Ke8 $11 {keeps the balance.}) 26. Rxc7+ $16 {[%emt 0:00:02]} Nd7 {[%emt 0:00:10]} 27. Rxa7 {[%emt 0:00:30]} Rb1+ $2 {[%emt 0:00:19] Black cannot hold the game after this.} ({Black should play} 27... R2b7 $14 28. Ra6 (28. Rxb7 Rxb7 29. h5 Nb8 $16) 28... Rd8) 28. Rxb1 $18 {[%emt 0:00:04]} Rxb1+ {[%emt 0:00:02][%mdl 4096] Endgame. KRN-KRN} 29. Kh2 {[%emt 0:00:02]} Kd8 {[%emt 0:00:24]} 30. h5 {[%emt 0:04:24]} Kc8 {[%emt 0:00:15]} 31. Ra8+ {[%emt 0:00:20]} Rb8 {[%emt 0:00:40]} 32. Rxb8+ {[%emt 0:00:41]} Nxb8 {[%emt 0:00:21] [#]} 33. Nd2 $1 {[%emt 0:05:11]} Kb7 {[%emt 0:01:06]} 34. f4 {[%emt 0:08:40]} Ka6 {[%emt 0:00:32]} 35. Nb3 {[%emt 0:02:16]} Kb5 {[%emt 0:00:20] [#]} 36. g4 $1 {[%emt 0:00:06] Weighted Error Value: White=0.01 (flawless) /Black=0.19 (very precise) .  Loses game:     	---       	Black=1      Mistake:       	---       	Black=1      Inaccurate:     	---       	Black=1      OK:         	White=17    	Black=11     Best:        	White=2     	Black=2      Strong:       	White=3     	Black=1} 1-0